bitfinex/quotes_BTCUSD_20220212
["timestamp","ask_amount","ask_price","bid_price","bid_amount"]
[1644631061587,0.2003328,42461.0,42456.0,0.11804008]
[1644631062890,0.2003328,42461.0,42458.0,0.058903]
[1644631063290,0.2003328,42460.0,42458.0,0.058903]
[1644631064727,0.2003328,42459.0,42458.0,2.28763962]
[1644631064927,0.5299748,42459.0,42458.0,2.28763962]
[1644631065328,0.329642,42459.0,42458.0,2.28763962]
[1644631065728,0.2003328,42460.0,42458.0,2.28763962]
[1644631067129,0.2003328,42460.0,42458.0,0.058903]
[1644631068775,0.2003328,42460.0,42458.0,2.19062445]
[1644631069179,0.0002595,42464.0,42459.0,0.0473]
[1644631069180,0.2003328,42463.0,42459.0,0.0473]
[1644631069479,0.2003328,42464.0,42460.0,0.117795]
[1644631069693,0.2005923,42464.0,42461.0,0.0473]
[1644631069880,9.623e-05,42465.0,42461.0,0.0473]
[1644631069881,0.20042903,42465.0,42461.0,0.0473]
[1644631070583,9.623e-05,42465.0,42462.0,0.117777]
[1644631070779,9.623e-05,42465.0,42463.0,0.0473]
[1644631070780,0.00035554,42465.0,42463.0,0.0473]
[1644631071079,9.623e-05,42465.0,42463.0,0.42389456]
[1644631071278,9.623e-05,42465.0,42464.0,0.5]
[1644631071556,9.623e-05,42465.0,42464.0,0.5473]
[1644631071757,9.623e-05,42465.0,42464.0,0.6473]
[1644631072458,9.623e-05,42465.0,42464.0,0.5473]
[1644631073457,0.06559204,42465.0,42464.0,0.5473]
[1644631073757,0.06559204,42465.0,42464.0,0.0473]
[1644631074756,9.623e-05,42465.0,42464.0,0.0473]
[1644631078931,9.623e-05,42465.0,42464.0,0.106188]
[1644631080531,0.07034846,42465.0,42464.0,0.106188]
[1644631080729,0.07034846,42465.0,42464.0,0.058888]
[1644631080931,0.07034846,42465.0,42461.0,0.176645]
[1644631081131,0.07034846,42465.0,42462.0,0.5]
[1644631081731,0.03875181,42464.0,42459.0,0.18706432]
[1644631081931,0.20268717,42460.0,42459.0,0.18706432]
[1644631082130,0.20268717,42460.0,42459.0,0.058903]
[1644631082981,0.20262201,42460.0,42459.0,0.058903]
[1644631083983,0.20262201,42460.0,42459.0,0.059003]
[1644631084383,0.20059211,42464.0,42459.0,2.46622973]
[1644631084581,0.00025931,42464.0,42460.0,0.058897]
[1644631084781,0.27068126,42465.0,42460.0,0.058897]
[1644631084782,0.07034846,42465.0,42460.0,0.058897]
[1644631084979,0.00025931,42464.0,42460.0,0.36374432]
[1644631085182,0.07034846,42465.0,42460.0,0.36374432]
[1644631085183,0.10935958,42465.0,42460.0,0.30484732]
[1644631085481,0.00025931,42464.0,42460.0,0.30484732]
[1644631085687,0.22503181,42465.0,42461.0,0.117786]
[1644631085881,0.00025931,42464.0,42461.0,0.117786]
[1644631086082,0.22503181,42465.0,42461.0,0.117786]
[1644631086729,0.06560436,42464.0,42461.0,0.117786]
[1644631089331,0.00035554,42465.0,42461.0,0.117786]
[1644631089534,9.623e-05,42465.0,42460.0,0.12360474]
[1644631089733,9.623e-05,42465.0,42460.0,0.5236466]
[1644631090204,0.00035554,42465.0,42461.0,0.31782786]
[1644631090403,9.623e-05,42465.0,42461.0,0.41782786]
[1644631091604,0.00035554,42465.0,42461.0,0.41782786]
[1644631091803,9.623e-05,42465.0,42462.0,0.37638441]
[1644631092003,9.623e-05,42465.0,42463.0,0.05888541]
[1644631092204,9.623e-05,42465.0,42464.0,0.35625918]
[1644631092405,9.623e-05,42465.0,42464.0,0.45625918]
[1644631092605,9.623e-05,42465.0,42464.0,0.158886]
[1644631093706,9.623e-05,42465.0,42464.0,0.058886]
[1644631095747,9.623e-05,42465.0,42464.0,0.36723962]
[1644631096246,9.623e-05,42465.0,42464.0,0.158886]
[1644631096444,0.07389249,42469.0,42464.0,0.158886]
[1644631096644,0.0002595,42468.0,42464.0,0.158886]
[1644631096844,0.0002595,42468.0,42464.0,0.217775]
[1644631097046,0.0002595,42468.0,42465.0,0.23554599]
[1644631097247,0.00077437,42469.0,42465.0,0.28284599]
[1644631097547,0.00077437,42469.0,42466.0,0.16775111]
[1644631097548,0.00051487,42469.0,42466.0,0.16775111]
[1644631097788,0.25042101,42475.0,42467.0,0.3702214]
[1644631097789,0.0002595,42471.0,42467.0,0.3702214]
[1644631097987,0.0002595,42470.0,42467.0,0.3702214]
[1644631098187,0.00034163,42471.0,42468.0,0.117754]
[1644631098389,0.00034163,42471.0,42468.0,0.341695]
[1644631098587,0.00034163,42471.0,42470.0,0.117759]
[1644631098789,0.00034163,42471.0,42470.0,0.43018489]
[1644631098986,0.0002595,42475.0,42470.0,0.4355709]
[1644631099188,0.00060114,42473.0,42470.0,0.217759]
[1644631099387,0.00034164,42473.0,42470.0,0.217759]
[1644631099586,0.00034164,42473.0,42470.0,0.51429206]
[1644631100197,0.0002595,42475.0,42470.0,0.217759]
[1644631100387,0.0002595,42477.0,42470.0,0.117759]
[1644631100687,0.00054926,42474.0,42470.0,0.117759]
[1644631100888,0.00054926,42474.0,42470.0,0.47868916]
[1644631101088,0.00080876,42474.0,42471.0,0.117759]
[1644631101292,0.00054926,42474.0,42471.0,0.117759]
[1644631101531,0.08056808,42475.0,42471.0,0.117759]
[1644631101732,0.08085784,42475.0,42471.0,0.117759]
[1644631102533,0.08030858,42475.0,42471.0,0.117759]
[1644631102933,0.08085784,42475.0,42471.0,0.117759]
[1644631103735,0.08030858,42475.0,42471.0,0.117759]
[1644631104137,0.08085784,42475.0,42471.0,0.117759]
[1644631105038,0.08030858,42475.0,42471.0,0.117759]
[1644631105282,0.08081678,42475.0,42471.0,0.117759]
[1644631105681,0.0005082,42475.0,42471.0,0.117759]
[1644631106281,0.0002595,42476.0,42471.0,0.117759]
[1644631106485,0.0005082,42475.0,42471.0,0.176635]
[1644631107282,0.06584565,42475.0,42471.0,0.176635]
[1644631107481,0.06533745,42475.0,42471.0,0.176635]
[1644631107686,0.06584565,42475.0,42471.0,0.176635]
[1644631107883,0.0005082,42475.0,42471.0,0.176635]
[1644631108583,0.0002595,42475.0,42472.0,0.05887703]
[1644631108783,0.0005082,42475.0,42473.0,0.058874]
[1644631109834,0.07260423,42480.0,42473.0,0.058874]
[1644631110037,0.00051096,42476.0,42475.0,0.11774186]
[1644631110235,0.00051096,42476.0,42475.0,0.17661186]
[1644631110937,0.00051096,42476.0,42475.0,0.05887]
[1644631111136,0.002,42480.0,42475.0,0.05887]
[1644631111335,0.00051095,42478.0,42475.0,0.117748]
[1644631112138,0.002,42480.0,42475.0,0.117748]
[1644631112438,0.00051094,42479.0,42475.0,0.117748]
[1644631113578,0.002,42480.0,42475.0,0.117748]
[1644631114790,0.002,42480.0,42476.0,0.35521431]
[1644631114983,0.002,42480.0,42476.0,0.41408231]
[1644631115184,0.002,42480.0,42476.0,0.51408231]
[1644631115386,0.002,42480.0,42476.0,0.56408231]
[1644631115785,0.002,42480.0,42478.0,0.058866]
[1644631115985,0.00225964,42480.0,42478.0,0.058866]
[1644631116184,0.002,42480.0,42478.0,0.058866]
[1644631118038,0.002,42480.0,42479.0,0.30554968]
[1644631118238,0.002,42480.0,42479.0,0.25554968]
[1644631118636,0.002,42480.0,42478.0,0.158866]
[1644631119440,0.002,42480.0,42476.0,0.27430074]
[1644631119637,0.00225964,42480.0,42476.0,0.45089674]
[1644631119839,0.00225964,42480.0,42476.0,0.50089674]
[1644631120040,0.00225964,42480.0,42476.0,0.55976795]
[1644631120281,0.00225964,42480.0,42478.0,0.058866]
[1644631120482,0.002,42480.0,42478.0,0.058866]
[1644631122784,0.002,42480.0,42478.0,0.108866]
[1644631123086,0.002,42480.0,42478.0,0.058866]
[1644631128782,0.06427233,42479.0,42478.0,0.058866]
[1644631130084,0.002,42480.0,42478.0,0.058866]
[1644631130284,0.002,42480.0,42479.0,0.3116017]
[1644631130684,0.002,42480.0,42479.0,0.4116017]
[1644631130883,0.002,42480.0,42479.0,0.4589017]
[1644631131736,0.17092333,42487.0,42479.0,0.4589017]
[1644631132041,0.17092333,42487.0,42483.0,0.058865]
[1644631132236,0.07480704,42487.0,42483.0,0.058865]
[1644631132935,0.03875181,42488.0,42483.0,0.058865]
[1644631133137,0.23882683,42488.0,42483.0,0.058865]
[1644631133935,0.23882683,42488.0,42483.0,0.11773]
[1644631134135,0.23916903,42488.0,42483.0,0.11773]
[1644631134636,0.32773595,42488.0,42483.0,0.11773]
[1644631135041,0.32739375,42488.0,42483.0,0.11773]
[1644631135284,0.23916903,42488.0,42483.0,0.11773]
[1644631136386,0.23882683,42488.0,42483.0,0.11773]
[1644631136590,0.23937781,42488.0,42483.0,0.11773]
[1644631136787,0.23878634,42488.0,42483.0,0.11773]
[1644631137285,0.23378634,42488.0,42483.0,0.17659252]
[1644631137485,0.23323536,42488.0,42483.0,0.17659252]
[1644631137689,0.03316034,42486.0,42483.0,0.17659252]
[1644631148337,0.03316034,42486.0,42483.0,0.47624984]
[1644631148537,0.03316034,42486.0,42483.0,0.17659252]
[1644631149540,0.03316034,42486.0,42481.0,0.15430454]
[1644631149739,0.03316034,42486.0,42481.0,0.49224654]
[1644631149938,0.03316034,42486.0,42481.0,0.39224654]
[1644631150186,0.03316034,42486.0,42484.0,0.33792394]
[1644631152690,0.03316034,42486.0,42484.0,2.34945558]
[1644631153091,0.02816034,42486.0,42484.0,2.34945558]
[1644631153491,0.00055099,42487.0,42484.0,2.34945558]
[1644631153691,0.02871133,42487.0,42485.0,0.058863]
[1644631154338,0.02816034,42487.0,42485.0,0.058863]
[1644631154541,0.00055098,42488.0,42486.0,0.45563089]
[1644631154841,0.00055098,42488.0,42487.0,0.058857]
[1644631155438,0.02816034,42488.0,42487.0,0.058857]
[1644631156742,0.02816034,42488.0,42487.0,0.36209391]
[1644631156939,0.011,42489.0,42487.0,0.40939391]
[1644631157792,0.011,42489.0,42487.0,0.46824991]
[1644631158293,0.02816034,42488.0,42487.0,0.165013]
[1644631158498,0.02816034,42488.0,42487.0,0.106157]
[1644631158695,0.02816034,42488.0,42487.0,0.058857]
[1644631158893,0.02816034,42488.0,42487.0,0.176581]
[1644631159093,0.011,42489.0,42487.0,0.176581]
[1644631159293,0.02816034,42488.0,42487.0,0.176581]
[1644631159494,0.09067029,42489.0,42487.0,0.176581]
[1644631159893,0.02816034,42488.0,42487.0,0.176581]
[1644631160295,0.02816034,42488.0,42487.0,0.235443]
[1644631166088,0.24403144,42489.0,42487.0,0.235443]
[1644631167797,0.34408164,42489.0,42485.0,0.117713]
[1644631167995,0.34408164,42489.0,42481.0,0.058875]
[1644631167996,0.329642,42486.0,42481.0,0.058875]
[1644631168195,0.20012414,42482.0,42481.0,0.058874]
[1644631168395,0.43418265,42484.0,42481.0,0.058874]
[1644631168596,0.23405851,42484.0,42481.0,0.058874]
[1644631168801,0.23405851,42484.0,42481.0,0.11774114]
[1644631169940,0.06554887,42482.0,42481.0,0.17660714]
[1644631170141,0.06554887,42482.0,42481.0,0.11774]
[1644631171741,0.06554887,42482.0,42481.0,0.058866]
[1644631171942,0.06554887,42482.0,42479.0,0.23549]
[1644631172344,0.06054887,42482.0,42479.0,0.23549]
[1644631173496,0.06054887,42482.0,42480.0,0.058873]
[1644631179647,0.00452742,42476.0,42475.0,0.31803462]
[1644631181296,0.00452742,42476.0,42475.0,0.37690862]
[1644631184249,0.00452742,42476.0,42475.0,0.176627]
[1644631185843,0.00452742,42476.0,42475.0,0.42696474]
[1644631186043,0.00452742,42476.0,42475.0,0.176627]
[1644631187245,0.00452742,42476.0,42475.0,0.73289241]
[1644631187446,0.00452742,42476.0,42475.0,0.66954001]
[1644631188295,0.00452742,42476.0,42475.0,1.11987775]
[1644631189599,0.00452742,42476.0,42475.0,1.16717775]
[1644631189797,0.00452742,42476.0,42475.0,0.91684001]
[1644631191196,0.00452742,42476.0,42475.0,1.41684001]
[1644631194442,0.00452742,42476.0,42475.0,1.66707708]
[1644631194744,0.00452742,42476.0,42475.0,1.66710051]
[1644631194944,0.00452742,42476.0,42475.0,1.41684001]
[1644631200445,0.00452742,42476.0,42475.0,1.71710687]
[1644631201447,0.00452742,42476.0,42475.0,1.71645767]
[1644631202247,0.00452742,42476.0,42475.0,1.53175463]
[1644631202452,0.00452742,42476.0,42475.0,1.23148777]
[1644631202696,0.00452742,42476.0,42475.0,1.25848777]
[1644631202898,0.00452742,42476.0,42475.0,1.35944317]
[1644631203696,0.00452742,42476.0,42475.0,0.85944317]
[1644631204096,0.00452742,42476.0,42475.0,0.67245783]
[1644631204297,0.00452742,42476.0,42475.0,0.77245783]
[1644631204499,0.00452742,42476.0,42475.0,1.12600095]
[1644631204698,0.00452742,42476.0,42475.0,1.36298629]
[1644631205102,0.00452742,42476.0,42475.0,1.05944317]
[1644631206000,0.00452742,42476.0,42475.0,1.27380637]
[1644631206655,0.00452742,42476.0,42475.0,1.77380637]
[1644631207056,0.00452742,42476.0,42475.0,1.25913697]
[1644631207556,0.00452742,42476.0,42475.0,1.45950325]
[1644631207758,0.00452742,42476.0,42475.0,1.459494]
[1644631208055,0.00452742,42476.0,42475.0,1.15913697]
[1644631208255,0.00452742,42476.0,42475.0,1.41219114]
[1644631208655,0.00147742,42476.0,42475.0,1.41219114]
[1644631208856,0.00147742,42476.0,42475.0,1.11183697]
[1644631209258,0.08840062,42476.0,42475.0,1.11183697]
[1644631209457,0.08840062,42476.0,42475.0,0.61183697]
[1644631209656,0.08840062,42476.0,42475.0,0.61193697]
[1644631211597,0.08840062,42476.0,42475.0,0.42495163]
[1644631212198,0.08840062,42476.0,42475.0,0.51193284]
[1644631212596,0.08840062,42476.0,42475.0,0.32495163]
[1644631214847,0.34534397,42476.0,42474.0,0.09531295]
[1644631215046,0.34534397,42476.0,42473.0,0.05942676]
[1644631215047,0.3,42475.0,42473.0,0.05942676]
[1644631215242,0.3,42475.0,42473.0,0.00055276]
[1644631215446,0.0869232,42474.0,42473.0,0.05943076]
[1644631215645,0.0869232,42474.0,42473.0,0.058878]
[1644631215646,0.83054384,42474.0,42473.0,0.058878]
[1644631215845,0.83054384,42474.0,42472.0,0.00055276]
[1644631216046,0.50027912,42473.0,42472.0,0.00055276]
[1644631216243,0.3,42473.0,42472.0,0.00055276]
[1644631216848,0.55027912,42473.0,42466.0,0.01083915]
[1644631217049,0.329642,42472.0,42470.0,0.00055277]
[1644631217244,0.60027912,42473.0,42470.0,0.00055277]
[1644631217245,0.3973,42471.0,42470.0,0.00055277]
[1644631217445,0.78439908,42470.0,42464.0,0.00196539]
[1644631217699,0.05,42466.0,42464.0,0.00196539]
[1644631218101,0.22349404,42465.0,42464.0,0.00196539]
[1644631218500,0.52349404,42465.0,42464.0,0.00196539]
[1644631218700,0.27079404,42465.0,42464.0,0.00196539]
[1644631219099,0.26579404,42465.0,42464.0,0.00196539]
[1644631219703,0.53757847,42465.0,42464.0,0.00196539]
[1644631220705,0.62450167,42465.0,42464.0,0.00196539]
[1644631225393,0.7,42463.0,42458.0,0.0019654]
[1644631225605,0.7,42463.0,42451.0,0.05]
[1644631225606,0.05,42459.0,42451.0,0.05]
[1644631225794,0.05,42459.0,42449.0,0.00887376]
[1644631225795,0.05,42452.0,42450.0,0.00023061]
[1644631225997,0.676942,42458.0,42450.0,0.00023061]
[1644631225998,0.329642,42451.0,42450.0,0.00023061]
[1644631226196,0.0473,42453.0,42449.0,0.00887376]
[1644631226395,0.42095002,42452.0,42449.0,0.00887376]
[1644631226595,0.0473,42451.0,42449.0,0.00887376]
[1644631227800,0.2962288,42450.0,42449.0,0.00887376]
[1644631227994,0.3435288,42450.0,42449.0,0.00910437]
[1644631229048,0.3435288,42450.0,42449.0,0.00887376]
[1644631230249,0.3435288,42450.0,42449.0,0.00690836]
[1644631231448,0.430452,42450.0,42449.0,0.00690836]
[1644631233297,0.430452,42450.0,42448.0,0.00023061]
[1644631233495,0.00023061,42448.0,42447.0,0.00025302]
[1644631233695,0.00023061,42448.0,42442.0,0.00023061]
[1644631233899,0.00023061,42448.0,42447.0,0.00055202]
[1644631234899,0.00023061,42448.0,42442.0,0.00023061]
[1644631235098,0.26723363,42443.0,42441.0,0.01920436]
[1644631235397,0.26723363,42443.0,42441.0,0.01723896]
[1644631235398,0.16969762,42443.0,42441.0,0.01723896]
[1644631236744,0.17165791,42442.0,42441.0,0.01723896]
[1644631240191,0.16665791,42442.0,42441.0,0.01723896]
[1644631240995,0.16665791,42442.0,42441.0,0.01223896]
[1644631241195,0.16665791,42442.0,42441.0,0.01213896]
[1644631241600,0.12819631,42442.0,42441.0,0.01213896]
[1644631241994,0.16665791,42442.0,42441.0,0.01213896]
[1644631244851,0.16665791,42442.0,42439.0,0.00055206]
[1644631244852,0.45,42440.0,42439.0,0.00055206]
[1644631245654,0.45,42440.0,42438.0,0.00690835]
[1644631245855,0.19162207,42439.0,42438.0,0.00690835]
[1644631246454,0.0907616,42441.0,42438.0,0.00690835]
[1644631247457,0.0384616,42440.0,42433.0,0.0001]
[1644631247909,0.02994852,42445.0,42433.0,0.0001]
[1644631248210,0.0473,42444.0,42434.0,0.00020704]
[1644631248911,0.08939783,42435.0,42434.0,0.05914104]
[1644631249111,0.08939783,42435.0,42434.0,0.00030704]
[1644631249315,0.08939783,42435.0,42433.0,0.0001]
[1644631253279,0.08939783,42435.0,42432.0,0.19542652]
[1644631253578,0.08939783,42435.0,42432.0,0.20233485]
[1644631254178,0.08939783,42435.0,42432.0,0.20178545]
[1644631254582,0.08939783,42435.0,42432.0,0.20375084]
[1644631254780,0.08939783,42435.0,42434.0,0.00176207]
[1644631255205,0.06853031,42439.0,42434.0,0.00176207]
[1644631255605,0.06853031,42439.0,42434.0,0.0086704]
[1644631256607,0.06853031,42439.0,42434.0,0.01118517]
[1644631257608,0.06853031,42439.0,42434.0,0.01260118]
[1644631257808,0.06853031,42439.0,42434.0,0.01315056]
[1644631258610,0.06853031,42439.0,42434.0,0.02005889]
[1644631258810,0.06853031,42439.0,42434.0,0.01950951]
[1644631259049,0.06853031,42439.0,42434.0,0.02005889]
[1644631259648,0.06853031,42439.0,42434.0,0.02202428]
[1644631260049,0.06853031,42439.0,42434.0,0.0214749]
[1644631260249,0.06853031,42439.0,42434.0,0.02212428]
[1644631260849,0.06853031,42439.0,42434.0,0.22947383]
[1644631261050,0.06853031,42439.0,42435.0,0.0001]
[1644631261448,0.06853031,42439.0,42435.0,0.00087727]
[1644631261649,0.06853031,42439.0,42435.0,0.00064938]
[1644631261849,0.06853031,42439.0,42435.0,0.0077856]
[1644631262251,0.06853031,42439.0,42436.0,0.20021333]
[1644631262451,0.06853031,42439.0,42437.0,0.0001]
[1644631262701,0.06853031,42439.0,42437.0,0.00032789]
[1644631262900,0.00023061,42448.0,42437.0,0.0001]
[1644631263104,0.00023061,42448.0,42438.0,0.20021333]
[1644631263304,0.00023061,42448.0,42439.0,0.0001]
[1644631263803,0.00023061,42448.0,42439.0,0.20031333]
[1644631264000,0.00023061,42448.0,42441.0,0.00054935]
[1644631264199,0.00023061,42448.0,42441.0,0.05957435]
[1644631264399,0.00023061,42448.0,42442.0,0.0001]
[1644631264603,0.08762849,42445.0,42442.0,0.00032789]
[1644631264802,0.08762849,42445.0,42442.0,0.00229328]
[1644631265402,0.08762849,42445.0,42442.0,0.20250661]
[1644631265601,0.08762849,42445.0,42443.0,0.0001]
[1644631266003,0.00023061,42448.0,42443.0,0.0001]
[1644631266210,0.00023061,42448.0,42444.0,0.058921]
[1644631266460,0.00023061,42448.0,42445.0,0.0001]
[1644631266852,0.00023061,42448.0,42445.0,0.00723621]
[1644631267052,0.066503,42447.0,42445.0,0.00700832]
[1644631267253,0.066503,42447.0,42445.0,0.06615121]
[1644631267556,0.066503,42447.0,42446.0,0.0001]
[1644631267755,0.066503,42447.0,42446.0,0.00219328]
[1644631268053,0.00023061,42448.0,42446.0,0.00196539]
[1644631268253,0.00023061,42448.0,42446.0,0.00229328]
[1644631268454,0.00023061,42448.0,42446.0,0.25255995]
[1644631268654,0.00023061,42448.0,42447.0,0.0001]
[1644631268853,0.00023061,42448.0,42447.0,0.00713621]
[1644631269054,0.07815982,42448.0,42447.0,0.00700832]
[1644631269253,0.07815982,42448.0,42447.0,0.00723621]
[1644631269855,0.07815982,42448.0,42447.0,0.01414453]
[1644631270898,0.07815982,42448.0,42447.0,0.02105285]
[1644631271297,0.00023061,42448.0,42447.0,0.02105285]
[1644631271898,0.00023061,42448.0,42447.0,0.02301824]
[1644631272600,0.00023061,42455.0,42447.0,0.02301824]
[1644631272798,0.07868052,42452.0,42448.0,0.20038302]
[1644631272998,0.07868052,42452.0,42449.0,0.0001]
[1644631273199,0.07415795,42452.0,42449.0,0.0001]
[1644631274145,0.07415795,42452.0,42449.0,0.059015]
[1644631274346,0.07415795,42452.0,42450.0,0.0001]
[1644631275847,0.07242317,42452.0,42449.0,0.0001]
[1644631276445,0.04742317,42452.0,42449.0,0.0001]
[1644631276647,0.04742317,42452.0,42449.0,0.20048302]
[1644631276846,0.04742317,42452.0,42450.0,0.0001]
[1644631277896,0.03854935,42452.0,42450.0,0.0001]
[1644631278696,0.329642,42451.0,42450.0,0.0001]
[1644631278896,0.03854935,42452.0,42449.0,0.0001]
[1644631279096,0.329642,42451.0,42449.0,0.0001]
[1644631279297,0.03854935,42452.0,42449.0,0.0001]
[1644631280497,0.03854935,42452.0,42448.0,0.0001]
[1644631280697,0.03854935,42452.0,42447.0,0.02796117]
[1644631280898,0.03854935,42452.0,42447.0,0.02786117]
[1644631281548,0.03854935,42452.0,42449.0,0.20034874]
[1644631281753,0.03854935,42452.0,42450.0,0.0001]
[1644631281950,0.03854935,42452.0,42449.0,0.0001]
[1644631282147,0.20015688,42459.0,42449.0,0.059014]
[1644631282349,0.36231463,42460.0,42449.0,0.059014]
[1644631282350,0.82854401,42460.0,42450.0,0.0001]
[1644631282648,0.62838713,42460.0,42450.0,0.0001]
[1644631282850,0.62838713,42460.0,42450.0,0.20044874]
[1644631283047,0.82854401,42460.0,42451.0,0.0001]
[1644631283247,0.82854401,42460.0,42450.0,0.0001]
[1644631283447,0.07515737,42451.0,42450.0,0.0001]
[1644631285902,0.62838713,42460.0,42450.0,0.0001]
[1644631287001,0.08323522,42452.0,42450.0,0.0001]
[1644631288105,0.08323522,42452.0,42449.0,0.0001]
[1644631289749,0.329642,42451.0,42449.0,0.0001]
[1644631289947,0.08323522,42452.0,42447.0,0.02763328]
[1644631289948,0.329642,42450.0,42447.0,0.02773328]
[1644631290151,0.329642,42450.0,42447.0,0.02763328]
[1644631292351,0.329642,42450.0,42447.0,0.00263328]
[1644631295697,0.329642,42450.0,42445.0,0.00703738]
[1644631295900,0.08323522,42452.0,42445.0,0.00703738]
[1644631295901,0.59310541,42446.0,42445.0,0.00053039]
[1644631296097,0.08682595,42445.0,42443.0,0.00022789]
[1644631296298,0.08682595,42445.0,42443.0,0.00053038]
[1644631296299,0.329642,42444.0,42443.0,0.00053038]
[1644631296548,0.08682595,42445.0,42443.0,0.00075827]
[1644631296748,0.08682595,42445.0,42443.0,0.20120701]
[1644631296949,0.08031897,42445.0,42444.0,0.0001]
[1644631297247,0.08031897,42445.0,42444.0,0.00032789]
[1644631297447,0.08031897,42445.0,42444.0,0.0001]
[1644631297648,0.08031897,42445.0,42444.0,0.00032789]
[1644631297848,0.08031897,42445.0,42444.0,0.0001]
[1644631298048,0.08031897,42445.0,42444.0,0.00032789]
[1644631298247,0.08031897,42445.0,42444.0,0.0001]
[1644631298453,0.08031897,42445.0,42444.0,0.00032789]
[1644631298649,0.08031897,42445.0,42444.0,0.0001]
[1644631298851,0.08031897,42445.0,42444.0,0.00022789]
[1644631299049,0.08031897,42445.0,42444.0,0.0001]
[1644631299249,0.40996097,42445.0,42444.0,0.00208296]
[1644631299450,0.40996097,42445.0,42444.0,0.00185507]
[1644631299650,0.40996097,42445.0,42444.0,0.00208296]
[1644631299651,0.08031897,42445.0,42444.0,0.00208296]
[1644631299850,0.08031897,42445.0,42444.0,0.00175507]
[1644631300302,0.08031897,42445.0,42444.0,0.00198296]
[1644631300503,0.08031897,42445.0,42444.0,0.00175507]
[1644631300706,0.08031897,42445.0,42444.0,0.00198296]
[1644631300904,0.08031897,42445.0,42444.0,0.00175507]
[1644631301303,0.08031897,42445.0,42444.0,0.00185507]
[1644631301904,0.40996097,42445.0,42444.0,0.00185507]
[1644631302305,0.08031897,42445.0,42444.0,0.00175507]
[1644631302707,0.40996097,42445.0,42444.0,0.00185507]
[1644631303005,0.08031897,42445.0,42444.0,0.00175507]
[1644631303205,0.08031897,42445.0,42444.0,0.00185507]
[1644631304246,0.40996097,42445.0,42444.0,0.00185507]
[1644631304448,0.40996097,42445.0,42444.0,0.0001]
[1644631304647,0.40996097,42445.0,42444.0,0.20044874]
[1644631305446,0.08031897,42445.0,42444.0,0.20044874]
[1644631306049,0.40996097,42445.0,42444.0,0.20044874]
[1644631306351,0.08031897,42445.0,42444.0,0.20044874]
[1644631306549,0.40996097,42445.0,42444.0,0.20044874]
[1644631306750,0.08031897,42445.0,42444.0,0.20044874]
[1644631307995,0.06654331,42447.0,42444.0,0.20044874]
[1644631308195,0.329642,42446.0,42445.0,0.0001]
[1644631308397,0.06654331,42447.0,42445.0,0.0001]
[1644631308796,0.329642,42446.0,42445.0,0.0001]
[1644631309002,0.06654331,42447.0,42445.0,0.0001]
[1644631309196,0.329642,42446.0,42445.0,0.0001]
[1644631311650,0.03739261,42450.0,42445.0,0.0001]
[1644631311851,0.3143872,42455.0,42446.0,0.30656274]
[1644631312048,0.1142,42455.0,42448.0,0.20034874]
[1644631312247,0.1142,42455.0,42449.0,0.0001]
[1644631312448,0.3644,42457.0,42449.0,0.20044874]
[1644631312748,0.06729617,42452.0,42450.0,0.059013]
[1644631313048,0.39693817,42452.0,42451.0,0.0001]
[1644631313249,0.06729617,42452.0,42449.0,0.0001]
[1644631313447,0.329642,42451.0,42449.0,0.0001]
[1644631313848,0.329642,42451.0,42446.0,0.20044874]
[1644631314048,0.26358547,42450.0,42447.0,0.0001]
[1644631314252,0.329642,42449.0,42447.0,0.0001]
[1644631314448,0.329642,42449.0,42446.0,0.20044874]
[1644631314648,0.329642,42448.0,42447.0,0.0001]
[1644631314847,0.26358547,42450.0,42447.0,0.0001]
[1644631315297,0.329642,42449.0,42447.0,0.0001]
[1644631315698,0.329642,42449.0,42447.0,0.20044874]
[1644631315901,0.329642,42449.0,42448.0,0.0001]
[1644631316097,0.329642,42449.0,42447.0,0.0001]
[1644631316501,0.329642,42448.0,42447.0,0.0001]
[1644631316699,0.26358547,42450.0,42446.0,0.0001]
[1644631317100,0.329642,42449.0,42446.0,0.0001]
[1644631317299,0.26358547,42450.0,42446.0,0.0001]
[1644631317504,0.23904563,42447.0,42446.0,0.0001]
[1644631317707,0.82334885,42447.0,42446.0,0.0001]
[1644631317901,0.82138346,42447.0,42446.0,0.0001]
[1644631318301,0.329642,42446.0,42445.0,0.0001]
[1644631318501,0.62155616,42446.0,42442.0,0.00206539]
[1644631318702,0.22856716,42444.0,42442.0,0.00206539]
[1644631318957,0.58635582,42443.0,42442.0,0.00206539]
[1644631319351,0.58635582,42443.0,42442.0,0.00196539]
[1644631320754,0.07711933,42445.0,42442.0,0.00196539]
[1644631322157,0.329642,42444.0,42442.0,0.00196539]
[1644631322554,0.329642,42444.0,42442.0,0.00206539]
[1644631322811,0.30331886,42445.0,42442.0,0.00206539]
[1644631323213,0.07711933,42445.0,42442.0,0.00206539]
[1644631323615,0.07711933,42445.0,42442.0,0.00196539]
[1644631324313,0.329642,42444.0,42442.0,0.00206539]
[1644631324513,0.329642,42444.0,42442.0,0.00196539]
[1644631325515,0.24856637,42443.0,42442.0,0.00196539]
[1644631325714,0.57820837,42443.0,42442.0,0.00196539]
[1644631328553,0.32213644,42445.0,42442.0,0.00196539]
[1644631328752,0.329642,42444.0,42442.0,0.00196539]
[1644631330825,0.32213644,42445.0,42442.0,0.00196539]
[1644631331024,0.32016362,42445.0,42442.0,0.00196539]
[1644631331225,0.07514651,42445.0,42442.0,0.00196539]
[1644631331458,0.07514651,42445.0,42442.0,0.20231413]
[1644631331626,0.329642,42444.0,42443.0,0.0001]
[1644631332225,0.329342,42444.0,42443.0,0.0001]
[1644631332424,0.329342,42444.0,42442.0,0.00206539]
[1644631334149,0.57641557,42443.0,42442.0,0.00206539]
[1644631334548,0.57641557,42443.0,42442.0,0.00196539]
[1644631334748,0.329642,42443.0,42442.0,0.00196539]
[1644631334950,0.329642,42443.0,42442.0,0.00206539]
[1644631335552,0.07514651,42445.0,42442.0,0.00206539]
[1644631336153,0.329644,42444.0,42442.0,0.00206539]
[1644631338007,0.05233291,42444.0,42442.0,0.0001]
[1644631338202,0.05233291,42444.0,42441.0,0.20044535]
[1644631338404,0.05233291,42444.0,42442.0,0.0001]
[1644631339002,0.05036752,42444.0,42442.0,0.0001]
[1644631341950,0.329645,42444.0,42442.0,0.0001]
[1644631342852,0.07514651,42445.0,42442.0,0.0001]
[1644631343154,0.329645,42444.0,42442.0,0.0001]
[1644631343551,0.07514651,42445.0,42442.0,0.0001]
[1644631343853,0.329645,42444.0,42442.0,0.0001]
[1644631344051,0.24938961,42443.0,42442.0,0.0001]
[1644631344250,0.329645,42443.0,42442.0,0.0001]